fUSD/lending_fUSD_20250607
["ID","MTS","AMOUNT","RATE_DAILY","PERIOD"]
[364847982,1749274247486,-151.0,0.00027231,7]
[364847983,1749274247497,-151.0,0.00027231,7]
[364847984,1749274247508,-151.0,0.00027231,7]
[364847985,1749274247520,-151.0,0.00027231,7]
[364847986,1749274247531,-500.0,0.00027237,2]
[364847987,1749274247543,-500.0,0.00027237,2]
[364847988,1749274247556,-1671.0,0.00027237,2]
[364847989,1749274247567,-1120.0,0.00027237,2]
[364847990,1749274247579,-500.0,0.0002724,7]
[364847991,1749274247592,-500.0,0.0002724,7]
[364847992,1749274247603,-500.0,0.0002724,7]
[364847993,1749274247613,-150.0,0.00027242,2]
[364847994,1749274247624,-150.0,0.00027252,2]
[364847995,1749274247635,-150.0,0.00027257,2]
[364847996,1749274247647,-500.0,0.00027265,2]
[364847997,1749274247660,-500.0,0.00027265,2]
[364847998,1749274247671,-1671.0,0.00027265,2]
[364847999,1749274247681,-1120.0,0.00027265,2]
[364848000,1749274247692,-500.0,0.00027268,7]
[364848001,1749274247710,-500.0,0.00027268,7]
[364848002,1749274247721,-439.93214716,0.00027268,7]
[364848003,1749274247732,-156.587,0.00027269,2]
[364848004,1749274247743,-743.78759815,0.00027269,2]
[364848005,1749274247753,-215.0738,0.00027269,2]
[364848006,1749274247763,-303.78,0.00027288,2]
[364848007,1749274247773,-303.39,0.00027288,2]
[364848008,1749274247784,-303.52,0.00027288,2]
[364848009,1749274247794,-301.01,0.00027288,2]
[364848010,1749274247808,-305.95,0.00027288,2]
[364848011,1749274247821,-303.38,0.00027288,2]
[364848012,1749274247832,-303.92,0.00027288,2]
[364848013,1749274247843,-302.44,0.00027288,2]
[364848014,1749274247853,-150.0,0.00027289,2]
[364848015,1749274247864,-500.0,0.00027292,2]
[364848016,1749274247875,-455.22703741,0.00027292,2]
[364848017,1749274247886,-1671.0,0.00027292,2]
[364848018,1749274247898,-1120.0,0.00027292,2]
[364848019,1749274247909,-500.0,0.00027295,7]
[364848020,1749274247919,-500.0,0.00027295,7]
[364848021,1749274247930,-197.65281716,0.00027297,2]
[364848022,1749274247940,-163.07524585,0.00027297,2]
[364848023,1749274247949,-196.14488394,0.00027297,5]
[364848024,1749274247960,-167.46057146,0.00027297,2]
[364848025,1749274247971,-1132.83977508,0.00027297,2]
[364848026,1749274247982,-150.0,0.00027298,2]
[364848027,1749274247994,-151.0,0.000273,7]
[364848028,1749274248004,-151.0,0.000273,7]
[364848029,1749274248014,-151.0,0.000273,7]
[364848030,1749274248025,-151.0,0.000273,7]
[364848031,1749274248036,-151.0,0.000273,7]
[364848032,1749274248047,-151.0,0.000273,7]
[364848033,1749274248059,-150.0,0.000273,2]
[364848034,1749274248070,-1565.40622,0.000273,3]
[364848035,1749274248081,-210.73,0.000273,2]
[364848036,1749274248092,-1000.0,0.000273,2]
[364848037,1749274248103,-112346.4671226,0.000273,2]
[364848038,1749274248114,-224.392342,0.00027303,7]
[364848039,1749274248125,-151.0,0.00027303,7]
[364848040,1749274248135,-224.392342,0.00027303,7]
[364848041,1749274248146,-151.0,0.00027303,7]
[364848042,1749274248157,-151.0,0.00027303,7]
[364848043,1749274248168,-151.0,0.00027303,7]
[364848044,1749274248178,-151.0,0.00027303,7]
[364848045,1749274248190,-151.0,0.00027303,7]
[364848046,1749274248201,-151.0,0.00027303,7]
[364848047,1749274248211,-151.0,0.00027303,7]
[364848048,1749274248222,-151.0,0.00027303,7]
[364848049,1749274248234,-151.0,0.00027303,7]
[364848050,1749274248244,-151.0,0.00027303,7]
[364848051,1749274248255,-151.0,0.00027303,7]
[364848052,1749274248266,-962.074668,0.00027303,7]
[364848053,1749274248276,-294.554657,0.00027303,7]
[364848054,1749274248287,-962.074668,0.00027303,7]
[364848055,1749274248298,-180.098551,0.00027303,7]
[364848056,1749274248308,-294.554657,0.00027303,7]
[364848057,1749274248319,-151.0,0.00027303,7]
[364848058,1749274248330,-151.0,0.00027303,7]
[364848059,1749274248341,-151.0,0.00027303,7]
[364848060,1749274248351,-1030.373222,0.00027303,7]
[364848061,1749274248362,-1030.373222,0.00027303,7]
[364848062,1749274248373,-1310.956622,0.00027303,7]
[364848063,1749274248384,-1310.956622,0.00027303,7]
[364848064,1749274248394,-205.49714,0.00027303,7]
[364848065,1749274248406,-205.49714,0.00027303,7]
[364848066,1749274248416,-316.849758,0.00027303,7]
[364848067,1749274248427,-316.849758,0.00027303,7]
[364848068,1749274248439,-173.567389,0.00027303,7]
[364848069,1749274248451,-151.0,0.00027303,7]
[364848070,1749274248464,-173.567389,0.00027303,7]
[364848071,1749274248475,-151.0,0.00027303,7]
[364848072,1749274248486,-151.0,0.00027303,7]
[364848073,1749274248496,-151.0,0.00027303,7]
[364848074,1749274248507,-150.0,0.0002731,2]
[364848075,1749274248517,-11731.65577306,0.00027311,2]
[364848076,1749274248528,-150.98544314,0.00027315,30]
[364848077,1749274248539,-176.0067784,0.00027315,30]
[364848078,1749274248550,-410.68248293,0.00027315,30]
[364848079,1749274248561,-500.0,0.0002732,2]
[364848080,1749274248571,-1671.0,0.0002732,2]
[364848081,1749274248583,-1120.0,0.0002732,2]
[364848082,1749274248595,-354.46494929,0.00027323,7]
[364848083,1749274248605,-500.0,0.00027323,7]
[364848084,1749274248616,-301.13,0.00027324,2]
[364848085,1749274248627,-796.51,0.00027325,2]
[364848086,1749274248638,-152.0,0.00027335,3]
[364848087,1749274248649,-161.0,0.00027335,3]
[364848088,1749274248660,-152.0,0.00027335,3]
[364848089,1749274248671,-254.24465194,0.00027335,3]
[364848090,1749274248681,-152.0,0.00027335,3]
[364848091,1749274248691,-152.0,0.00027335,3]
[364848092,1749274248702,-152.0,0.00027335,3]
[364848093,1749274248712,-152.0,0.00027335,3]
[364848094,1749274248722,-152.0,0.00027335,3]
[364848095,1749274248733,-151.0,0.00027335,3]
[364848096,1749274248743,-153.32302988,0.00027335,3]
[364848097,1749274248753,-151.0,0.00027335,3]
[364848098,1749274248763,-151.0,0.00027335,3]
[364848099,1749274248774,-151.0,0.00027335,3]
[364848100,1749274248784,-151.0,0.00027335,3]
[364848101,1749274248794,-151.0,0.00027335,3]
[364848102,1749274248804,-294.30268943,0.00027335,3]
[364848103,1749274248814,-150.0,0.00027335,2]
[364848104,1749274248826,-151.0,0.00027335,7]
[364848105,1749274248837,-280.007193,0.00027335,7]
[364848106,1749274248848,-151.0,0.00027335,7]
[364848107,1749274248859,-350.109708,0.00027335,7]
[364848108,1749274248872,-350.109708,0.00027335,7]
[364848109,1749274249249,-801.0,0.00027335,2]
[364848110,1749274249261,-636.0,0.00027335,2]
[364848111,1749274249271,-589.0,0.00027335,2]
[364848112,1749274249281,-926.0,0.00027335,2]
[364848113,1749274249291,-557.0,0.00027335,2]
[364848114,1749274249301,-2000.0,0.00027335,2]
[364848115,1749274249311,-1274.0,0.00027335,2]
[364848116,1749274249321,-1255.0,0.00027335,2]
[364848117,1749274249330,-1159.0,0.00027335,2]
[364848118,1749274249340,-7018.0,0.00027335,2]
[364848119,1749274249350,-947.168,0.00027335,2]
[364848120,1749274249359,-1164.0,0.00027335,2]
[364848121,1749274249369,-157.034,0.00027335,2]
[364848122,1749274249380,-150.0,0.00027338,2]
[364848123,1749274249390,-150.0,0.00027339,2]
[364848124,1749274249401,-151.0,0.00027341,7]
[364848125,1749274249410,-151.0,0.00027341,7]
[364848126,1749274249420,-151.0,0.00027341,7]
[364848127,1749274249430,-151.0,0.00027341,7]
[364848128,1749274249440,-151.0,0.00027341,7]
[364848129,1749274249449,-207.852747,0.00027341,7]
[364848130,1749274249459,-207.852747,0.00027341,7]
[364848131,1749274249469,-151.0,0.00027341,7]
[364848132,1749274249479,-167.857019,0.00027341,7]
[364848133,1749274249489,-167.857019,0.00027341,7]
[364848134,1749274249499,-151.85797,0.00027341,7]
[364848135,1749274249508,-500.0,0.00027347,2]
[364848136,1749274249517,-1671.0,0.00027347,2]
[364848137,1749274249526,-1120.0,0.00027347,2]
[364848138,1749274249536,-151.0,0.00027347,7]
[364848139,1749274249545,-180.094485,0.00027347,7]
[364848140,1749274249554,-151.0,0.00027347,7]
[364848141,1749274249563,-151.0,0.00027347,7]
[364848142,1749274249573,-151.0,0.00027347,7]
[364848143,1749274249583,-909.57152615,0.00027347,2]
[364848144,1749274249595,-154.77621848,0.00027347,2]
[364848145,1749274249604,-1019.18542653,0.00027348,2]
[364848146,1749274249613,-500.0,0.0002735,7]
[364848147,1749274249622,-2000.0,0.0002735,2]
[364848148,1749274249632,-168.02529908,0.0002735,2]
[364848149,1749274249642,-160.90331576,0.0002735,2]
[364848150,1749274249652,-154.792367,0.00027358,7]
[364848151,1749274249662,-603.389432,0.00027358,7]
[364848152,1749274249672,-603.389432,0.00027358,7]
[364848153,1749274249681,-151.0,0.00027358,7]
[364848154,1749274249691,-967.22827589,0.0002736,2]
[364848155,1749274249700,-2000.0,0.0002736,2]
[364848156,1749274249709,-935.21233493,0.00027368,2]
[364848157,1749274249718,-500.0,0.0002737,2]
[364848158,1749274249728,-500.0,0.0002737,2]
[364848159,1749274249737,-500.0,0.0002737,2]
[364848160,1749274249747,-500.0,0.0002737,2]
[364848161,1749274249756,-916.58451705,0.0002737,2]
[364848162,1749274249766,-1943.24002266,0.0002737,2]
[364848163,1749274249776,-500.55196899,0.00027373,2]
[364848164,1749274249785,-502.1835811,0.00027373,2]
[364848165,1749274249795,-500.0,0.00027373,2]
[364848166,1749274249804,-500.0,0.00027373,2]
[364848167,1749274249814,-166.10030881,0.00027373,2]
[364848168,1749274249824,-150.0,0.00027373,2]
[364848169,1749274249834,-500.0,0.00027374,2]
[364848170,1749274249844,-1671.0,0.00027374,2]
[364848171,1749274249853,-1120.0,0.00027374,2]
[364848172,1749274249863,-223.088,0.00027377,2]
[364848173,1749274249873,-191.454,0.00027377,2]
[364848174,1749274249882,-171.477,0.00027377,2]
[364848175,1749274249892,-150.451,0.00027377,2]
[364848176,1749274249902,-151.478,0.00027377,2]
[364848177,1749274249912,-240.448,0.00027377,2]
[364848178,1749274249921,-300.0,0.00027377,10]
[364848179,1749274249930,-672.89282082,0.00027377,2]
[364848180,1749274249940,-326.52672753,0.00027377,10]
[364848181,1749274249949,-500.0,0.00027377,7]
[364848182,1749274249958,-150.213,0.00027378,2]
[364848183,1749274249967,-150.0,0.00027378,2]
[364848184,1749274249977,-156.819,0.00027378,2]
[364848185,1749274249986,-150.172,0.00027378,2]
[364848186,1749274249996,-150.549,0.00027378,2]
[364848187,1749274250005,-157.949,0.00027378,2]
[364848188,1749274250015,-151.0,0.00027378,7]
[364848189,1749274250024,-151.0,0.00027378,7]
[364848190,1749274250034,-151.0,0.00027378,7]
[364848191,1749274250043,-151.0,0.00027378,7]
[364848192,1749274250052,-151.0,0.00027378,7]
[364848193,1749274250063,-151.0,0.00027378,7]
[364848194,1749274250072,-170.184927,0.00027378,7]
[364848195,1749274250082,-1563.367253,0.00027378,7]
[364848196,1749274250092,-1563.367253,0.00027378,7]
[364848197,1749274250102,-170.184927,0.00027378,7]
[364848198,1749274250113,-151.0,0.00027378,7]
[364848199,1749274250124,-280.992215,0.00027378,7]
[364848200,1749274250134,-280.992215,0.00027378,7]
[364848201,1749274250144,-216.293326,0.00027378,7]
[364848202,1749274250154,-216.293326,0.00027378,7]
[364848203,1749274250164,-151.0,0.00027378,7]
[364848204,1749274250174,-151.0,0.00027378,7]
[364848205,1749274250183,-151.0,0.00027378,7]
[364848206,1749274250193,-188.641033,0.00027378,7]
[364848207,1749274250202,-151.0,0.00027378,7]
[364848208,1749274250211,-982.439498,0.00027378,7]
[364848209,1749274250220,-982.439498,0.00027378,7]
[364848210,1749274250230,-1833.26369,0.00027378,7]
[364848211,1749274250240,-179.340194,0.00027378,7]
[364848212,1749274250249,-179.340194,0.00027378,7]
[364848213,1749274250260,-151.0,0.00027378,7]
[364848214,1749274250269,-151.0,0.00027378,7]
[364848215,1749274250280,-151.0,0.00027378,7]
[364848216,1749274250291,-207.852747,0.00027378,7]
[364848217,1749274250301,-10000.0,0.00027378,7]
[364848218,1749274250311,-207.852747,0.00027378,7]
[364848219,1749274250322,-10000.0,0.00027378,7]
[364848220,1749274250332,-10000.0,0.00027378,7]
[364848221,1749274250344,-895.060117,0.00027378,7]
[364848222,1749274250354,-895.060117,0.00027378,7]
[364848223,1749274250365,-151.0,0.00027378,7]
[364848224,1749274250376,-151.0,0.00027378,7]
[364848225,1749274250387,-300.853411,0.00027378,7]
[364848226,1749274250397,-300.853411,0.00027378,7]
[364848227,1749274250407,-167.857019,0.00027378,7]
[364848228,1749274250418,-167.857019,0.00027378,7]
[364848229,1749274250427,-10001.0674424,0.00027378,2]
[364848230,1749274250437,-151.0,0.00027378,7]
[364848231,1749274250446,-151.0,0.00027378,7]
[364848232,1749274250456,-40081.3555626,0.00027378,2]
[364848233,1749274250465,-151.0,0.00027378,7]
[364848234,1749274250475,-222.13349,0.00027378,7]
[364848235,1749274250484,-222.13349,0.00027378,7]
[364848236,1749274250493,-222.13349,0.00027378,7]
[364848237,1749274250503,-222.13349,0.00027378,7]
[364848238,1749274250512,-354.436695,0.00027378,7]
[364848239,1749274250521,-354.436695,0.00027378,7]
[364848240,1749274250531,-603.389432,0.00027378,7]
[364848241,1749274250541,-645.346851,0.00027378,7]
[364848242,1749274250552,-645.346851,0.00027378,7]
[364848243,1749274250563,-603.389432,0.00027378,7]
[364848244,1749274250573,-493.964404,0.00027378,7]
[364848245,1749274250584,-493.964404,0.00027378,7]
[364848246,1749274250595,-151.0,0.00027378,7]
[364848247,1749274250604,-493.964404,0.00027378,7]
[364848248,1749274250614,-493.964404,0.00027378,7]
[364848249,1749274250624,-151.0,0.00027378,7]
[364848250,1749274250634,-645.346851,0.00027378,7]
[364848251,1749274250644,-645.346851,0.00027378,7]
[364848252,1749274250654,-151.0,0.00027378,7]
[364848253,1749274250663,-151.0,0.00027378,7]
[364848254,1749274250672,-158.059182,0.00027378,7]
[364848255,1749274250681,-361694.3333459,0.00027378,2]
[364848256,1749274250690,-162.719513,0.00027378,7]
[364848257,1749274250700,-1019.3265323,0.00027378,2]
[364848258,1749274250710,-151.0,0.00027378,7]
[364848259,1749274250719,-151.0,0.00027378,7]
[364848260,1749274250728,-151.0,0.00027378,7]
[364848261,1749274250737,-151.0,0.00027378,7]
[364848262,1749274250748,-151.0,0.00027378,7]
[364848263,1749274250758,-42770.0642611,0.00027378,2]
[364848264,1749274250767,-5572.1917405,0.00027378,2]
[364848265,1749274250776,-350.109708,0.00027378,7]
[364848266,1749274250785,-11245.7581637,0.00027379,2]
[364848267,1749274250794,-23182.4265787,0.00027379,2]
[364848268,1749274250804,-151.0,0.00027387,7]
[364848269,1749274250813,-151.0,0.00027387,7]
[364848270,1749274250824,-151.0,0.00027387,7]
[364848271,1749274250833,-151.0,0.00027387,7]
[364848272,1749274250843,-224.392342,0.00027387,7]
[364848273,1749274250853,-224.392342,0.00027387,7]
[364848274,1749274250862,-151.0,0.00027387,7]
[364848275,1749274250872,-151.0,0.00027387,7]
[364848276,1749274250881,-151.0,0.00027387,7]
[364848277,1749274250891,-151.0,0.00027387,7]
[364848278,1749274250900,-151.0,0.00027387,7]
[364848279,1749274250909,-151.0,0.00027387,7]
[364848280,1749274250919,-151.0,0.00027387,7]
[364848281,1749274250929,-151.0,0.00027387,7]
[364848282,1749274250938,-151.0,0.00027387,7]
[364848283,1749274250947,-151.0,0.00027387,7]
[364848284,1749274250957,-151.0,0.00027387,7]
[364848285,1749274250966,-962.074668,0.00027387,7]
[364848286,1749274250976,-294.554657,0.00027387,7]
[364848287,1749274250986,-962.074668,0.00027387,7]
[364848288,1749274250996,-294.554657,0.00027387,7]
[364848289,1749274251006,-151.0,0.00027387,7]
[364848290,1749274251016,-151.0,0.00027387,7]
[364848291,1749274251025,-151.0,0.00027387,7]
[364848292,1749274251036,-1030.373222,0.00027387,7]
[364848293,1749274251046,-1030.373222,0.00027387,7]
[364848294,1749274251056,-1310.956622,0.00027387,7]
[364848295,1749274251067,-1310.956622,0.00027387,7]
[364848296,1749274251077,-205.49714,0.00027387,7]
[364848297,1749274251087,-205.49714,0.00027387,7]
[364848298,1749274251097,-316.849758,0.00027387,7]
[364848299,1749274251107,-316.849758,0.00027387,7]
[364848300,1749274251117,-173.567389,0.00027387,7]
[364848301,1749274251127,-151.0,0.00027387,7]
[364848302,1749274251137,-173.567389,0.00027387,7]
[364848303,1749274251148,-274.637008,0.00027387,7]
[364848304,1749274251157,-151.0,0.00027387,7]
[364848305,1749274251167,-151.0,0.00027387,7]
[364848306,1749274251177,-4008.65112229,0.0002739,2]
[364848307,1749274251187,-818.88381123,0.0002739,2]
[364848308,1749274251197,-214.20587835,0.0002739,2]
[364848309,1749274251208,-151.0,0.00027392,7]
[364848310,1749274251217,-1563.367253,0.00027392,7]
[364848311,1749274251227,-1563.367253,0.00027392,7]
[364848312,1749274251236,-280.992215,0.00027392,7]
[364848313,1749274251246,-280.992215,0.00027392,7]
[364848314,1749274251256,-216.293326,0.00027392,7]
[364848315,1749274251266,-216.293326,0.00027392,7]
[364848316,1749274251276,-179.340194,0.00027392,7]
[364848317,1749274251286,-179.340194,0.00027392,7]
[364848318,1749274251296,-1500.0,0.00027396,2]
[364848319,1749274251306,-300.0,0.00027396,10]
[364848320,1749274251316,-151.0,0.00027397,7]
[364848321,1749274251325,-151.0,0.00027397,7]
[364848322,1749274251334,-151.0,0.00027397,7]
[364848323,1749274251344,-151.0,0.00027397,7]
[364848324,1749274251354,-151.0,0.00027397,7]
[364848325,1749274251365,-151.0,0.00027397,7]
[364848326,1749274251375,-151.0,0.00027397,7]
[364848327,1749274251386,-151.0,0.00027397,7]
[364848328,1749274251395,-151.0,0.00027397,7]
[364848329,1749274251407,-151.736635,0.00027397,7]
[364848330,1749274251417,-151.0,0.00027397,7]
[364848331,1749274251427,-151.0,0.00027397,7]
[364848332,1749274251438,-151.0,0.00027397,7]
[364848333,1749274251448,-151.0,0.00027397,7]
[364848334,1749274251458,-151.0,0.00027397,7]
[364848335,1749274251467,-151.0,0.00027397,7]
[364848336,1749274251477,-151.0,0.00027397,7]
[364848337,1749274251487,-151.0,0.00027397,7]
[364848338,1749274251497,-151.0,0.00027397,7]
[364848339,1749274251507,-151.0,0.00027397,7]
[364848340,1749274251516,-179.912112,0.00027397,7]
[364848341,1749274251526,-206.465903,0.00027397,7]
[364848342,1749274251536,-206.465903,0.00027397,7]
[364848343,1749274251545,-151.0,0.00027397,7]
[364848344,1749274251555,-151.0,0.00027397,7]
[364848345,1749274251656,-151.0,0.00027397,7]
[364848346,1749274251667,-151.0,0.00027397,7]
[364848347,1749274251676,-151.0,0.00027397,7]
[364848348,1749274251686,-151.0,0.00027397,7]
[364848349,1749274251695,-178.839671,0.00027397,7]
[364848350,1749274251705,-151.0,0.00027397,7]
[364848351,1749274251717,-151.0,0.00027397,7]
[364848352,1749274251727,-151.0,0.00027397,7]
[364848353,1749274251737,-151.0,0.00027397,7]
[364848354,1749274251747,-151.0,0.00027397,7]
[364848355,1749274251756,-151.0,0.00027397,7]
[364848356,1749274251766,-151.0,0.00027397,7]
[364848357,1749274251776,-151.0,0.00027397,7]
[364848358,1749274251786,-151.0,0.00027397,7]
[364848359,1749274251796,-151.0,0.00027397,7]
[364848360,1749274251805,-151.0,0.00027397,7]
[364848361,1749274251815,-151.0,0.00027397,7]
[364848362,1749274251825,-151.0,0.00027397,7]
[364848363,1749274251835,-151.0,0.00027397,7]
[364848364,1749274251844,-151.0,0.00027397,7]
[364848365,1749274251854,-178.070023,0.00027397,7]
[364848366,1749274251863,-151.0,0.00027397,7]
[364848367,1749274251873,-178.070023,0.00027397,7]
[364848368,1749274251883,-213.696042,0.00027397,7]
[364848369,1749274251893,-213.696042,0.00027397,7]
[364848370,1749274251903,-151.0,0.00027397,7]
[364848371,1749274251912,-151.0,0.00027397,7]
[364848372,1749274251921,-151.0,0.00027397,7]
[364848373,1749274251930,-151.949847,0.00027397,7]
[364848374,1749274251940,-223.721959,0.00027397,7]
[364848375,1749274251950,-223.721959,0.00027397,7]
[364848376,1749274251960,-151.0,0.00027397,7]
[364848377,1749274251970,-247.742247,0.00027397,7]
[364848378,1749274251979,-151.0,0.00027397,7]
[364848379,1749274251989,-247.742247,0.00027397,7]
[364848380,1749274251999,-151.0,0.00027397,7]
[364848381,1749274252008,-151.0,0.00027397,7]
[364848382,1749274252018,-151.0,0.00027397,7]
[364848383,1749274252027,-162.798157,0.00027397,7]
[364848384,1749274252038,-151.0,0.00027397,7]
[364848385,1749274252047,-171.259726,0.00027397,7]
[364848386,1749274252056,-151.0,0.00027397,7]
[364848387,1749274252066,-171.259726,0.00027397,7]
[364848388,1749274252075,-151.0,0.00027397,7]
[364848389,1749274252085,-151.0,0.00027397,7]
[364848390,1749274252094,-151.0,0.00027397,7]
[364848391,1749274252104,-151.0,0.00027397,7]
[364848392,1749274252113,-151.0,0.00027397,7]
[364848393,1749274252123,-483.04102565,0.00027397,5]
[364848394,1749274252133,-160.0,0.00027397,5]
[364848395,1749274252142,-480.0,0.00027397,5]
[364848396,1749274252152,-151.0,0.00027397,7]
[364848397,1749274252161,-151.0,0.00027397,7]
[364848398,1749274252170,-151.0,0.00027397,7]
[364848399,1749274252180,-481.66132008,0.00027397,5]
[364848400,1749274252190,-596.85529705,0.00027397,5]
[364848401,1749274252200,-450.24678777,0.00027397,5]
[364848402,1749274252210,-151.0,0.00027397,7]
[364848403,1749274252219,-151.0,0.00027397,7]
[364848404,1749274252228,-151.0,0.00027397,7]
[364848405,1749274252238,-266.19494421,0.00027397,5]
[364848406,1749274252247,-151.0,0.00027397,7]
[364848407,1749274252257,-151.0,0.00027397,7]
[364848408,1749274252267,-151.0,0.00027397,7]
[364848409,1749274252276,-429.59645433,0.00027397,5]
[364848410,1749274252286,-154.51251527,0.00027397,5]
[364848411,1749274252295,-485.92948082,0.00027397,5]
[364848412,1749274252305,-420.0,0.00027397,5]
[364848413,1749274252314,-480.0,0.00027397,5]
[364848414,1749274252323,-151.0,0.00027397,7]
[364848415,1749274252333,-482.78209038,0.00027397,5]
[364848416,1749274252343,-351.00222525,0.00027397,5]
[364848417,1749274252354,-158.963045,0.00027397,5]
[364848418,1749274252364,-489.08188832,0.00027397,5]
[364848419,1749274252374,-426.66124349,0.00027397,5]
[364848420,1749274252384,-505.08634057,0.00027397,5]
[364848421,1749274252393,-480.0,0.00027397,5]
[364848422,1749274252403,-480.0,0.00027397,5]
[364848423,1749274252413,-480.0,0.00027397,5]
[364848424,1749274252423,-481.19927177,0.00027397,5]
[364848425,1749274252433,-1787.253615,0.00027397,5]
[364848426,1749274252443,-481.11001299,0.00027397,5]
[364848427,1749274252453,-480.0,0.00027397,5]
[364848428,1749274252464,-463.80218434,0.00027397,5]
[364848429,1749274252474,-494.61358872,0.00027397,5]
[364848430,1749274252484,-480.0,0.00027397,5]
[364848431,1749274252493,-488.49537533,0.00027397,5]
[364848432,1749274252503,-2102.121321,0.00027397,5]
[364848433,1749274252513,-224.392342,0.00027397,7]
[364848434,1749274252522,-224.392342,0.00027397,7]
[364848435,1749274252532,-224.392342,0.00027397,7]
[364848436,1749274252542,-224.392342,0.00027397,7]
[364848437,1749274252552,-224.392342,0.00027397,7]
[364848438,1749274252561,-224.392342,0.00027397,7]
[364848439,1749274252573,-151.0,0.00027397,7]
[364848440,1749274252584,-151.0,0.00027397,7]
[364848441,1749274252597,-391.70791515,0.00027397,5]
[364848442,1749274252606,-151.0,0.00027397,7]
[364848443,1749274252616,-469.80536693,0.00027397,5]
[364848444,1749274252627,-151.0,0.00027397,7]
[364848445,1749274252637,-151.0,0.00027397,7]
[364848446,1749274252646,-151.0,0.00027397,7]
[364848447,1749274252656,-162.958385,0.00027397,5]
[364848448,1749274252665,-492.16538455,0.00027397,5]
[364848449,1749274252675,-480.0,0.00027397,5]
[364848450,1749274252685,-484.09000498,0.00027397,5]
[364848451,1749274252695,-483.53787066,0.00027397,5]
[364848452,1749274252704,-482.96009987,0.00027397,5]
[364848453,1749274252713,-471.19927273,0.00027397,5]
[364848454,1749274252723,-444.52636198,0.00027397,5]
[364848455,1749274252732,-480.0,0.00027397,5]
[364848456,1749274252742,-480.0,0.00027397,5]
[364848457,1749274252751,-490.86607536,0.00027397,5]
[364848458,1749274252760,-492.84153575,0.00027397,5]
[364848459,1749274252770,-488.18414687,0.00027397,5]
[364848460,1749274252780,-350.5594619,0.00027397,5]
[364848461,1749274252789,-480.0,0.00027397,5]
[364848462,1749274252799,-495.21795497,0.00027397,5]
[364848463,1749274252808,-487.54544254,0.00027397,5]
[364848464,1749274252818,-480.0,0.00027397,5]
[364848465,1749274252828,-488.01892616,0.00027397,5]
[364848466,1749274252837,-480.0,0.00027397,5]
[364848467,1749274252847,-488.5673688,0.00027397,5]
[364848468,1749274252856,-480.0,0.00027397,5]
[364848469,1749274252865,-398.6754245,0.00027397,5]
[364848470,1749274252875,-480.0,0.00027397,5]
[364848471,1749274252884,-487.22877357,0.00027397,5]
[364848472,1749274252894,-269.22639665,0.00027397,5]
[364848473,1749274252903,-488.52046706,0.00027397,5]
[364848474,1749274252913,-422.39032245,0.00027397,5]
[364848475,1749274252922,-486.50055348,0.00027397,5]
[364848476,1749274252932,-480.0,0.00027397,5]
[364848477,1749274252941,-480.0,0.00027397,5]
[364848478,1749274252951,-383.976827,0.00027397,5]
[364848479,1749274252960,-480.0,0.00027397,5]
[364848480,1749274252969,-480.0,0.00027397,5]
[364848481,1749274252979,-457.8609667,0.00027397,5]